bitfinex/quotes_SOLUSD_20250228
["timestamp","ask_amount","ask_price","bid_price","bid_amount"]
[1740733137899,0.03,131.6,131.59,77.78297214]
[1740733141193,0.03,131.6,131.59,7.98]
[1740733141380,0.03,131.6,131.56,7.601]
[1740733141586,0.03,131.6,131.59,7.96]
[1740733142297,82.83,131.6,131.59,7.96]
[1740733142694,89.1103,131.59,131.55,7.96]
[1740733142879,82.8,131.58,131.55,7.96]
[1740733143691,82.8,131.58,131.53,8.023]
[1740733144197,82.8,131.57,131.53,8.023]
[1740733144390,7.5999,131.58,131.53,8.023]
[1740733144391,1.5898,131.55,131.53,0.063]
[1740733144589,103.44964886,131.54,131.5,0.063]
[1740733144789,18.64964886,131.51,131.5,0.063]
[1740733144999,101.44964886,131.51,131.5,0.063]
[1740733145289,6.3411,131.52,131.5,0.063]
[1740733145899,82.8,131.54,131.5,0.063]
[1740733146095,1.5898,131.55,131.5,20.063]
[1740733146295,1.5898,131.55,131.5,0.063]
[1740733146683,84.3898,131.55,131.5,0.063]
[1740733146995,18.64964886,131.54,131.5,0.063]
[1740733147600,84.3898,131.55,131.5,0.063]
[1740733148899,82.8,131.55,131.5,20.063]
[1740733149678,82.8,131.55,131.51,7.6039]
[1740733149889,82.8,131.55,131.52,7.98]
[1740733150092,82.8,131.54,131.52,7.98]
[1740733150887,82.8,131.53,131.52,7.98]
[1740733151899,101.44964886,131.53,131.52,7.98]
[1740733152103,18.64964886,131.52,131.49,6.67855482]
[1740733152304,7.6028,131.53,131.49,6.67855482]
[1740733152503,18.64964886,131.51,131.44,7.6708]
[1740733152707,82.8,131.5,131.45,7.96]
[1740733153082,82.8,131.5,131.46,7.96]
[1740733153394,82.8,131.5,131.47,7.96]
[1740733154888,1.5852,131.52,131.47,15.5662]
[1740733155401,13.9426,131.56,131.47,34.5819]
[1740733155402,82.8,131.55,131.47,34.5819]
[1740733155981,82.8,131.54,131.47,34.5819]
[1740733156309,82.8,131.53,131.47,7.96]
[1740733156505,82.8,131.53,131.47,15.5662]
[1740733156703,82.8,131.55,131.48,0.14216157]
[1740733157393,82.8,131.55,131.5,20.0]
[1740733157588,7.9583,131.56,131.5,20.0]
[1740733157902,7.9583,131.56,131.51,7.6039]
[1740733158209,7.9583,131.56,131.52,7.96]
[1740733159288,18.64964886,131.55,131.52,7.96]
[1740733160991,18.64964886,131.53,131.52,7.96]
[1740733161196,18.64964886,131.53,131.45,7.6074]
[1740733161421,18.64964886,131.51,131.46,7.94]
[1740733162315,18.64964886,131.51,131.46,15.5467]
[1740733163023,18.64964886,131.51,131.46,7.94]
[1740733165203,82.8,131.5,131.47,0.063]
[1740733165401,18.64964886,131.51,131.47,0.063]
[1740733165402,82.8,131.49,131.47,0.063]
[1740733166537,82.8,131.48,131.47,0.063]
[1740733170323,18.64964886,131.48,131.47,0.063]
[1740733170523,26.25534886,131.48,131.47,0.063]
[1740733171312,20.64964886,131.47,131.44,0.063]
[1740733172138,18.64964886,131.45,131.44,0.063]
[1740733172835,28.25704886,131.45,131.44,0.063]
[1740733173207,20.64964886,131.43,131.41,0.063]
[1740733173414,26.46144886,131.42,131.41,0.063]
[1740733174811,2.0,131.47,131.41,0.063]
[1740733175014,7.7939,131.46,131.41,0.063]
[1740733175323,7.7939,131.46,131.42,7.82]
[1740733176018,1.6627,131.46,131.42,7.82]
[1740733177119,18.64964886,131.45,131.42,7.82]
[1740733177733,1.6627,131.46,131.42,7.82]
[1740733178113,6.3669,131.49,131.42,15.4289]
[1740733178317,18.64964886,131.48,131.42,15.4289]
[1740733178928,0.03,131.47,131.42,15.4289]
[1740733180730,0.03,131.47,131.42,7.82]
[1740733181412,0.03,131.47,131.42,15.4291]
[1740733182541,0.03,131.47,131.42,7.82]
[1740733186536,2.03,131.47,131.42,7.82]
[1740733187141,18.64964886,131.45,131.42,7.82]
[1740733187444,18.64964886,131.43,131.41,0.063]
[1740733187642,20.64964886,131.43,131.41,0.063]
[1740733187831,20.22924886,131.42,131.41,0.063]
[1740733189646,27.83834886,131.42,131.41,0.063]
[1740733189845,7.46558548,131.46,131.41,0.063]
[1740733190053,15.07248548,131.46,131.41,0.063]
[1740733190552,18.64964886,131.45,131.41,0.063]
[1740733192346,1.6274,131.46,131.41,0.063]
[1740733192547,0.03,131.47,131.41,0.063]
[1740733192737,18.67964886,131.47,131.41,0.063]
[1740733193451,7.6364,131.47,131.41,0.063]
[1740733193628,9.6364,131.47,131.41,0.063]
[1740733194234,18.64964886,131.45,131.41,0.063]
[1740733195433,7.608,131.44,131.41,0.063]
[1740733195752,2.0,131.46,131.41,0.063]
[1740733196053,18.64964886,131.44,131.41,0.063]
[1740733196657,0.03,131.47,131.41,0.063]
[1740733196952,2.03,131.47,131.41,0.063]
[1740733197653,9.6364,131.47,131.41,0.063]
[1740733200259,18.64964886,131.45,131.41,0.063]
[1740733200759,18.64964886,131.46,131.41,0.063]
[1740733200930,0.03,131.47,131.41,0.063]
[1740733201533,18.67964886,131.47,131.41,0.063]
[1740733201963,2.0,131.46,131.41,0.063]
[1740733202256,26.25804886,131.44,131.41,0.063]
[1740733202455,28.25804886,131.44,131.41,0.063]
[1740733202745,18.64964886,131.42,131.41,0.063]
[1740733203755,20.64964886,131.42,131.41,0.063]
[1740733204053,20.79181043,131.42,131.41,0.063]
[1740733204852,28.25874886,131.42,131.41,0.063]
[1740733205432,28.25874886,131.42,131.39,0.063]
[1740733205653,26.25874886,131.42,131.39,0.063]
[1740733205963,2.0,131.41,131.39,0.063]
[1740733206248,18.64964886,131.4,131.39,0.063]
[1740733206451,7.6091,131.42,131.39,0.063]
[1740733206661,2.0,131.41,131.39,0.063]
[1740733207154,18.64964886,131.38,131.36,0.063]
[1740733207354,20.64964886,131.38,131.36,0.063]
[1740733207533,18.64964886,131.36,131.34,0.063]
[1740733208241,20.64964886,131.35,131.34,0.063]
[1740733208446,18.64964886,131.34,131.3,7.883]
[1740733208653,20.64964886,131.34,131.3,7.883]
[1740733209035,7.6144,131.33,131.3,7.883]
[1740733209362,18.64964886,131.32,131.3,0.063]
[1740733209543,3.78785675,131.37,131.31,6.6108]
[1740733209749,7.6091,131.42,131.32,7.82]
[1740733210432,18.64964886,131.38,131.32,7.82]
[1740733211351,18.64964886,131.38,131.33,7.82]
[1740733211743,26.26124886,131.38,131.33,7.82]
[1740733211949,20.0,131.35,131.33,7.82]
[1740733212159,11.49592249,131.39,131.33,7.82]
[1740733212344,3.88492249,131.39,131.33,7.82]
[1740733212763,18.64964886,131.38,131.33,7.82]
[1740733214556,26.26114886,131.38,131.33,7.82]
[1740733214741,18.64964886,131.34,131.33,7.82]
[1740733215154,18.64964886,131.34,131.33,7.883]
[1740733215367,3.88492249,131.39,131.33,7.883]
[1740733215767,20.0,131.38,131.33,7.883]
[1740733216246,18.64964886,131.37,131.33,7.883]
[1740733216845,18.64964886,131.38,131.33,7.883]
[1740733219062,1.569,131.44,131.33,7.883]
[1740733219063,3.74047876,131.45,131.37,0.14216157]
[1740733219267,18.64964886,131.44,131.38,15.4315]
[1740733219783,3.75003152,131.46,131.39,0.14216157]
[1740733220657,3.75003152,131.46,131.38,15.4315]
[1740733220857,18.64964886,131.45,131.38,15.4315]
[1740733221365,3.75003152,131.46,131.39,0.14216157]
[1740733221742,18.67964886,131.47,131.4,6.1065]
[1740733221950,18.67964886,131.47,131.41,1.5684]
[1740733223366,18.67964886,131.47,131.41,9.178]
[1740733223561,18.67964886,131.47,131.4,13.7166]
[1740733224070,0.03,131.47,131.44,0.14216157]
[1740733224267,0.03,131.47,131.46,6.20266157]
[1740733225162,0.03,131.55,131.47,0.5275]
[1740733225365,0.03,131.55,131.48,7.6057]
[1740733227258,0.03,131.55,131.48,0.14216157]
[1740733227769,0.03,131.55,131.5,2.14216157]
[1740733227979,0.03,131.55,131.51,7.82]
[1740733229279,0.03,131.55,131.51,15.4237]
[1740733229590,0.03,131.55,131.54,3.65346157]
[1740733229880,0.03,131.58,131.55,2.63966157]
[1740733230056,0.03,131.58,131.56,7.82]
[1740733231653,0.03,131.58,131.55,0.4975]
[1740733231884,0.03,131.58,131.56,7.86]
[1740733233374,0.03,131.58,131.56,15.4609]
[1740733235274,0.03,131.6,131.56,15.4609]
[1740733235275,0.03,131.6,131.59,2.0]
[1740733235479,0.03,131.6,131.59,7.5993]
[1740733235656,0.03,131.6,131.59,9.5993]
[1740733235959,0.03,131.6,131.58,0.4675]
[1740733236154,0.03,131.6,131.59,0.14216157]
[1740733236754,0.03,131.6,131.59,2.14216157]
[1740733236974,0.03,131.6,131.59,0.14216157]
[1740733237171,0.03,131.6,131.59,2.14216157]
[1740733237563,0.03,131.61,131.59,11.74146157]
[1740733237754,0.03,131.61,131.6,2.14216157]
[1740733239570,0.03,131.61,131.6,7.74086157]
[1740733240067,26.70553936,131.63,131.6,7.74086157]
[1740733240068,26.70553936,131.63,131.62,8.14686157]
[1740733240272,26.70553936,131.63,131.62,15.94686157]
[1740733241557,3.936e-05,131.63,131.62,25.54446157]
[1740733241759,28.26959355,131.73,131.67,2.14216157]
[1740733241986,28.26959355,131.73,131.68,7.8]
[1740733243264,28.26959355,131.73,131.71,2.14216157]
[1740733243457,28.26959355,131.73,131.72,9.73396157]
[1740733243961,28.26959355,131.73,131.72,11.73396157]
[1740733244792,9.355e-05,131.73,131.72,11.73396157]
[1740733244971,31.34884774,131.84,131.76,0.14216157]
[1740733245171,31.34884774,131.84,131.77,7.84]
[1740733245373,29.83364774,131.84,131.77,7.84]
[1740733245879,18.64964886,131.83,131.77,7.84]
[1740733246091,29.83364774,131.84,131.77,7.84]
[1740733246491,18.64964886,131.83,131.77,7.84]
[1740733247201,29.83364774,131.84,131.77,7.84]
[1740733247771,29.83364774,131.84,131.78,2.14216157]
[1740733248068,29.83364774,131.84,131.83,2.14216157]
[1740733248273,29.83364774,131.84,131.83,12.00216157]
[1740733249195,29.83364774,131.84,131.83,8.00216157]
[1740733249368,29.83364774,131.84,131.83,7.86]
[1740733249581,29.83364774,131.84,131.83,7.92]
[1740733250701,29.83364774,131.84,131.83,10.06216157]
[1740733251097,29.83364774,131.84,131.83,12.06216157]
[1740733251605,29.83364774,131.84,131.83,19.64766157]
[1740733251897,29.86364774,131.84,131.83,19.64766157]
[1740733252577,31.39770194,131.94,131.87,0.14216157]
[1740733252795,31.39770194,131.94,131.88,8.04]
[1740733252980,31.39770194,131.94,131.89,0.14216157]
[1740733253397,31.39770194,131.94,131.88,8.04]
[1740733253801,31.39770194,131.94,131.88,15.6222]
[1740733254187,31.39770194,131.94,131.89,0.14216157]
[1740733254494,31.39770194,131.94,131.88,15.6222]
[1740733256602,31.39770194,131.94,131.88,8.04]
[1740733256897,31.39770194,131.94,131.88,15.6226]
[1740733257396,31.39770194,131.94,131.89,0.14216157]
[1740733257602,31.39770194,131.94,131.89,2.14216157]
[1740733257915,31.39770194,131.94,131.92,7.5803]
[1740733258205,31.39770194,131.94,131.93,8.04]
[1740733258381,31.39770194,131.94,131.93,8.18216157]
[1740733258573,31.39770194,131.94,131.93,8.04]
[1740733260073,31.39770194,131.94,131.88,7.5825]
[1740733260278,31.39770194,131.94,131.89,8.06]
[1740733261101,101.44964886,131.93,131.86,127.94]
[1740733261399,101.44964886,131.93,131.9,8.06]
[1740733261607,101.44964886,131.93,131.84,7.5848]
[1740733261803,82.8,131.92,131.85,8.06]
[1740733261994,101.44964886,131.91,131.86,8.06]
[1740733262194,82.8,131.9,131.8,127.84]
[1740733262395,18.64964886,131.88,131.81,8.08]
[1740733262597,82.8,131.89,131.81,8.08]
[1740733262997,101.44964886,131.88,131.76,9.5895]
[1740733263195,82.8,131.87,131.78,2.0]
[1740733263404,82.8,131.87,131.77,10.12]
[1740733263610,82.8,131.87,131.77,8.12]
[1740733263611,18.64964886,131.86,131.77,8.12]
[1740733263903,82.8,131.85,131.75,144.0838]
[1740733264105,82.8,131.85,131.78,8.16]
[1740733264494,82.8,131.9,131.77,2.0]
[1740733264704,82.8,131.9,131.79,13.77323286]
[1740733264897,82.8,131.89,131.78,1.59246957]
[1740733265088,18.64964886,131.88,131.79,8.3]
[1740733265400,82.8,131.87,131.79,8.3]
[1740733265596,82.8,131.87,131.8,0.14216157]
[1740733265797,82.8,131.87,131.79,8.3]
[1740733265997,82.8,131.87,131.8,0.14216157]
[1740733266207,82.8,131.87,131.8,2.14216157]
[1740733266393,82.83,131.91,131.81,2.0]
[1740733266712,82.83,131.91,131.82,0.14216157]
[1740733266891,18.64964886,131.9,131.82,20.0]
[1740733267096,82.83,131.91,131.82,20.0]
[1740733267298,82.83,131.91,131.83,0.14216157]
[1740733267602,82.83,131.91,131.84,8.32]
[1740733268003,101.44964886,131.9,131.84,8.32]
[1740733268584,82.8,131.89,131.84,8.32]
[1740733269302,18.64964886,131.88,131.84,8.32]
[1740733269635,82.8,131.87,131.84,8.32]
[1740733270308,82.8,131.86,131.84,8.32]
[1740733270904,82.83,131.91,131.84,15.9046]
[1740733271103,82.8,131.9,131.84,15.9046]
[1740733271308,82.8,131.9,131.85,0.14216157]
[1740733271802,82.8,131.9,131.84,15.9046]
[1740733272505,0.03,131.91,131.85,0.14216157]
[1740733273118,0.03,131.91,131.84,34.8669]
[1740733273296,0.03,131.91,131.85,0.14216157]
[1740733273496,0.03,131.91,131.85,128.00216157]
[1740733273693,56.38903393,131.93,131.85,130.00216157]
[1740733273896,56.38903393,131.93,131.87,0.14216157]
[1740733274307,31.39770194,131.94,131.92,0.14216157]
[1740733274506,31.39770194,131.94,131.93,8.34]
[1740733275998,50.0473508,131.94,131.93,8.34]
[1740733276214,31.39770194,131.94,131.93,8.34]
[1740733280905,31.39770194,131.94,131.93,15.9197]
[1740733281114,31.39770194,131.94,131.93,8.34]
[1740733284522,50.0473508,131.94,131.93,8.34]
[1740733285097,82.8,131.93,131.86,7.5833]
[1740733285422,84.3298,131.93,131.87,8.28]
[1740733286193,84.3298,131.93,131.87,15.8631]
[1740733286829,82.8,131.93,131.88,2.14216157]
[1740733287006,31.39770194,131.94,131.91,0.14216157]
[1740733287329,31.39770194,131.94,131.93,2.14216157]
[1740733287330,31.42770194,131.94,131.93,2.14216157]
[1740733287499,1.94e-06,131.94,131.93,2.14216157]
[1740733287895,5.0470042,132.03,131.96,0.14216157]
[1740733288131,5.0470042,132.03,131.98,7.5769]
[1740733288725,5.0470042,132.03,131.99,0.14216157]
[1740733289029,5.0470042,132.03,131.99,2.14216157]
[1740733289232,5.0470042,132.03,132.01,0.14216157]
[1740733289397,5.0470042,132.03,132.02,8.42216157]
[1740733290021,4.2e-06,132.03,132.02,12.42216157]
[1740733290330,4.2e-06,132.03,132.02,19.99676157]
[1740733290700,4.2e-06,132.03,132.02,21.58664521]
[1740733291117,4.2e-06,132.03,132.02,19.99676157]
[1740733291621,4.2e-06,132.03,132.02,17.99676157]
[1740733291822,4.2e-06,132.03,132.02,15.8546]
[1740733292909,4.2e-06,132.03,132.02,8.28]
[1740733293234,13.38574461,132.12,132.02,8.28]
[1740733293235,13.7641764,132.06,132.02,8.28]
[1740733293427,76.36080194,132.05,132.02,8.28]
[1740733293734,82.47780194,132.05,132.02,8.28]
[1740733294919,86.51238494,132.05,132.02,8.28]
[1740733295313,18.64964886,132.04,132.02,8.28]
[1740733295625,101.0536508,132.03,132.02,6.6134]
[1740733295806,26.22364886,132.03,131.94,7.579]
[1740733296006,82.8,132.02,131.91,6.2034]
[1740733296225,82.8,132.01,131.92,8.28]
[1740733296605,82.8,132.0,131.92,8.28]
[1740733296923,18.64964886,131.98,131.92,8.28]
[1740733297128,82.8,131.97,131.88,127.72]
[1740733297301,82.8,131.96,131.89,8.28]
[1740733297702,82.8,131.96,131.89,15.862]
[1740733299024,81.05165921,131.96,131.9,0.14216157]
[1740733299329,81.05165921,131.96,131.94,0.063]
[1740733299524,81.05165921,131.96,131.95,8.26]
[1740733301029,81.05165921,131.96,131.94,0.063]
[1740733301407,81.05165921,131.95,131.94,0.063]
[1740733301618,107.27990807,131.95,131.94,0.063]
[1740733301807,81.05165921,131.94,131.92,8.26]
[1740733302010,81.05165921,131.94,131.84,127.74]
[1740733302207,18.64964886,131.92,131.84,127.74]
[1740733302514,18.64964886,131.92,131.85,8.24]
[1740733302716,7.9848,131.91,131.85,8.24]
[1740733302933,81.05165921,131.9,131.85,8.24]
[1740733304537,81.05165921,131.89,131.85,8.24]
[1740733305642,81.05165921,131.92,131.86,0.14216157]
[1740733306347,81.05165921,131.92,131.85,15.8243]
[1740733307544,81.05165921,131.92,131.85,8.24]
[1740733307934,99.70130807,131.91,131.84,127.74]
[1740733308137,18.64964886,131.89,131.85,8.24]
[1740733308342,81.05165921,131.9,131.85,8.24]
[1740733308725,7.8243,131.89,131.85,8.24]
[1740733310233,15.4064,131.89,131.85,8.24]
[1740733310637,7.8243,131.89,131.85,8.24]
[1740733311036,81.05165921,131.9,131.85,8.24]
[1740733311931,88.63315921,131.9,131.85,8.24]
[1740733312232,81.05165921,131.89,131.85,8.24]
[1740733312554,81.05165921,131.89,131.8,7.65]
[1740733312846,81.05165921,131.88,131.81,8.24]
[1740733313841,88.63435921,131.88,131.81,8.24]
[1740733314251,81.05165921,131.88,131.81,15.8265]
[1740733314942,88.63445921,131.88,131.81,8.24]
[1740733315133,99.70130807,131.87,131.81,8.24]
[1740733315334,82.64885921,131.86,131.81,8.24]
[1740733315550,81.05165921,131.85,131.81,8.24]
[1740733315843,81.05165921,131.85,131.81,15.8263]
[1740733316048,7.6458,131.86,131.81,15.8263]
[1740733316347,7.6458,131.86,131.81,8.24]
[1740733316728,81.05165921,131.85,131.81,8.24]
[1740733316930,81.05165921,131.85,131.81,15.8265]
[1740733317233,81.05165921,131.85,131.81,8.24]
[1740733320256,81.05165921,131.84,131.81,8.22]
[1740733321555,81.05165921,131.84,131.8,0.063]
[1740733321733,88.63715921,131.83,131.8,0.063]
[1740733321930,81.05165921,131.82,131.8,0.063]
[1740733322439,26.5493,131.83,131.8,0.063]
[1740733322440,81.05165921,131.81,131.8,0.063]
[1740733322831,81.05165921,131.81,131.8,8.283]
[1740733323454,81.05165921,131.85,131.8,8.283]
[1740733323653,1.5357,131.9,131.81,2.14216157]
[1740733323860,9.1174,131.9,131.8,22.0195]
[1740733324028,27.76704886,131.9,131.8,8.283]
[1740733324238,9.1174,131.9,131.8,8.283]
[1740733324437,1.5357,131.9,131.81,0.14216157]
[1740733324675,81.05165921,131.91,131.82,4.0]
[1740733324836,1.5319,131.94,131.85,20.79181043]
[1740733324837,81.05165921,131.93,131.85,20.79181043]
[1740733325033,0.03,131.94,131.86,8.24]
[1740733325764,81.05165921,131.93,131.86,8.24]
[1740733325931,80.35165921,131.93,131.86,15.8235]
[1740733326560,0.03,131.94,131.87,0.14216157]
[1740733326737,0.03,131.94,131.86,15.8235]
[1740733327059,0.03,131.94,131.86,8.24]
[1740733327246,80.35165921,131.93,131.86,8.24]
[1740733327448,80.35165921,131.93,131.84,6.1771]
[1740733327449,80.35165921,131.93,131.8,83.09181057]
[1740733327640,99.00130807,131.92,131.81,15.8266]
[1740733327834,99.00130807,131.92,131.81,8.24]
[1740733328035,26.89394886,131.9,131.81,8.24]
[1740733328254,80.35165921,131.89,131.81,8.24]
[1740733328657,80.35165921,131.88,131.82,8.22]
[1740733329761,80.35165921,131.92,131.83,0.14216157]
[1740733329946,80.35165921,131.92,131.83,8.32496157]
[1740733330140,80.35165921,131.91,131.86,20.0]
[1740733330335,80.35165921,131.91,131.87,8.24]
[1740733330763,80.35165921,131.9,131.87,8.24]
[1740733332670,80.35165921,131.89,131.87,8.24]
[1740733332843,80.35165921,131.88,131.87,8.24]
[1740733333046,18.64964886,131.92,131.87,8.24]
[1740733333269,82.8,131.91,131.87,8.24]
[1740733333558,82.8,131.9,131.87,8.24]
[1740733334043,82.8,131.89,131.87,8.24]
[1740733334250,82.8,131.88,131.8,0.063]
[1740733334436,18.64964886,131.93,131.81,8.24]
[1740733334437,82.8,131.87,131.81,8.24]
[1740733334637,82.8,131.86,131.81,8.24]
[1740733334866,82.8,131.85,131.81,8.24]
[1740733336435,82.8,131.85,131.8,0.063]
[1740733336641,82.8,131.85,131.82,8.24]
[1740733337189,82.8,131.84,131.82,8.24]
[1740733338064,82.8,131.83,131.82,8.24]
[1740733338635,84.3637,131.86,131.82,8.24]
[1740733338962,82.8,131.86,131.82,15.826]
[1740733339762,82.8,131.86,131.82,8.24]
[1740733339962,82.8,131.85,131.82,8.24]
[1740733340270,82.8,131.84,131.82,8.24]
[1740733340461,82.8,131.88,131.82,8.24]
[1740733340966,101.44964886,131.87,131.82,8.24]
[1740733341164,82.8,131.86,131.82,8.24]
[1740733341368,82.8,131.85,131.82,8.24]
[1740733342376,82.8,131.85,131.82,15.826]
[1740733342754,82.8,131.85,131.82,8.24]
[1740733345090,82.8,131.84,131.82,8.24]
[1740733345271,82.8,131.83,131.82,8.24]
[1740733345579,7.5843,131.85,131.82,8.24]
[1740733345782,82.8,131.82,131.8,8.283]
[1740733345954,82.8,131.81,131.8,0.063]
[1740733346776,26.76404886,131.82,131.8,0.063]
[1740733347158,28.76404886,131.82,131.8,0.063]
[1740733347558,30.76404886,131.82,131.8,0.063]
[1740733348083,18.64964886,131.8,131.77,8.2]
[1740733348280,18.64964886,131.78,131.77,8.2]
[1740733348777,18.64964886,131.78,131.72,0.063]
[1740733349081,18.64964886,131.78,131.74,8.2]
[1740733349263,22.40254759,131.78,131.74,8.2]
[1740733349663,24.40254759,131.78,131.74,8.2]
[1740733349858,18.64964886,131.76,131.72,0.063]
[1740733350065,18.64964886,131.76,131.72,8.263]
[1740733350376,18.64964886,131.76,131.72,0.063]
[1740733350377,18.64964886,131.74,131.72,0.063]
[1740733350579,18.64964886,131.74,131.72,8.263]
[1740733350760,26.62094886,131.74,131.72,8.263]
[1740733351075,30.40470899,131.74,131.72,8.263]
[1740733351379,101.44964886,131.73,131.72,0.063]
[1740733351587,20.64964886,131.73,131.72,0.063]
[1740733351784,22.64964886,131.73,131.72,0.063]
[1740733351985,2.0,131.68,131.66,0.063]
[1740733352284,20.64964886,131.68,131.66,0.063]
[1740733352474,2.0,131.71,131.66,0.063]
[1740733352667,7.5918,131.72,131.66,0.063]
[1740733352978,7.9713,131.74,131.66,0.063]
[1740733353490,7.9713,131.74,131.66,7.6581]
[1740733353676,7.971,131.78,131.67,0.14216157]
[1740733353871,9.971,131.78,131.66,9.1774]
[1740733354071,18.64964886,131.77,131.66,28.1657]
[1740733354272,18.64964886,131.77,131.66,9.1774]
[1740733354582,2.0,131.77,131.66,9.1774]
[1740733354976,18.64964886,131.76,131.66,1.5823]
[1740733355281,42.46276457,131.74,131.66,0.063]
[1740733355484,42.46276457,131.74,131.66,7.6581]
[1740733355661,3.81311571,131.74,131.66,7.6581]
[1740733355861,82.8,131.73,131.66,7.6581]
[1740733356275,82.8,131.72,131.66,7.6581]
[1740733357467,82.8,131.71,131.66,7.6581]
[1740733357686,82.8,131.7,131.66,0.063]
[1740733357990,2.0,131.75,131.66,0.063]
[1740733357991,82.8,131.69,131.66,0.063]
[1740733358191,82.8,131.68,131.66,0.063]
[1740733359085,82.8,131.68,131.67,8.18]
[1740733359285,18.64964886,131.72,131.67,8.18]
[1740733359585,82.8,131.71,131.67,8.18]
[1740733360588,82.8,131.7,131.67,8.18]
[1740733360795,82.8,131.7,131.67,15.7745]
[1740733361092,82.8,131.7,131.67,15.7746]
[1740733361590,82.8,131.7,131.67,8.18]
[1740733362474,82.8,131.7,131.67,15.7747]
[1740733362785,82.8,131.7,131.67,8.18]
[1740733363581,82.8,131.7,131.67,15.7746]
[1740733364705,0.03,131.73,131.67,15.7746]
[1740733365274,0.03,131.73,131.67,8.18]
[1740733365568,82.8,131.72,131.67,8.18]
[1740733365782,82.8,131.71,131.67,15.7746]
[1740733366593,82.8,131.71,131.67,34.7614]
[1740733368584,82.8,131.71,131.67,15.7746]
[1740733369386,82.8,131.71,131.67,8.18]
[1740733369725,82.8,131.71,131.67,15.7745]
[1740733369878,82.8,131.7,131.66,0.063]
[1740733370077,82.8,131.69,131.66,0.063]
[1740733370489,82.8,131.69,131.67,8.16]
[1740733372201,82.8,131.72,131.67,8.16]
[1740733372619,82.8,131.72,131.67,15.7546]
[1740733373232,82.8,131.72,131.67,8.16]
[1740733375231,90.3919,131.72,131.67,8.16]
[1740733375404,82.8,131.71,131.67,8.16]
[1740733375719,82.8,131.7,131.68,8.12]
[1740733375906,82.8,131.69,131.68,8.12]
[1740733376109,3.80101011,131.71,131.68,8.12]
[1740733376728,11.39351011,131.71,131.68,7.92]
[1740733378598,20.0,131.69,131.68,7.92]
[1740733378798,20.0,131.69,131.66,0.063]
[1740733379028,20.0,131.69,131.66,8.183]
[1740733379210,22.0,131.68,131.66,0.063]
[1740733379413,18.64964886,131.67,131.66,0.063]
[1740733379606,22.64964886,131.67,131.66,0.063]
[1740733379929,22.64964886,131.67,131.66,0.0001]
[1740733380629,2.0,131.63,131.62,8.12]
[1740733380803,8.18508658,131.63,131.62,8.12]
[1740733381120,8.18508658,131.63,131.59,8.1]
[1740733381326,18.64964886,131.62,131.59,8.1]
[1740733382097,3.7554669,131.63,131.59,8.1]
[1740733382728,11.3525669,131.63,131.59,8.1]
[1740733382904,18.64964886,131.62,131.59,8.1]
[1740733384027,7.5982,131.61,131.59,8.1]
[1740733384702,3.7554669,131.63,131.59,8.1]
[1740733385120,27.004,131.68,131.59,8.1]
[1740733385121,82.8,131.62,131.59,8.1]
[1740733385422,82.8,131.62,131.59,15.6993]
[1740733385627,82.8,131.62,131.59,8.1]